[Event "8th Fischer Heraklion-GM 2022"]
[Site "Heraklion"]
[Date "2022.05.02"]
[Round "7.3"]
[White "Vaishali R"]
[Black "Szwed, Jacek"]
[Result "1-0"]
[ECO "C16"]
[WhiteElo "2411"]
[BlackElo "2360"]
[Annotator "TA"]
[PlyCount "67"]
[EventDate "2022.04.18"]
[EventType "tourn"]
[EventCountry "GRE"]
[SourceTitle "playchess.com"]
[Source "ChessBase"]
[SourceQuality "1"]
[TimeControl "40/5400+30:1800+30"]

{[%evp 19,67,31,32,18,46,19,16,18,19,0,0,0,25,29,56,36,43,0,44,50,63,-6,62,31,32,25,778,767,764,771,767,772,774,766,723,705,830,797,1048,1047,1043,1046,1001,1046,983,941,1578,1560,1217,1200]} 1. e4 {[%emt 0:00:34]} e6 {[%emt 0:01:27]} 2. d4 {[%emt 0:00:16]} d5 {[%emt 0:00:06]} 3. Nc3 {[%emt 0:00:05]} Bb4 {[%emt 0:00:06]} 4. e5 {[%emt 0:00:31]} Ne7 {[%emt 0:00:25]} 5. a3 {[%emt 0:00:22]} Bxc3+ {[%emt 0:00:06]} 6. bxc3 {[%emt 0:00:04]} b6 {[%emt 0:00:05]} 7. Qg4 {[%emt 0:01:28]} Ng6 {[%emt 0:00:11]} 8. h4 {[%emt 0:03:01]} h5 {[%emt 0:00:31]} 9. Qg3 {[%emt 0:05:49]} Ba6 {[%emt 0:00:34]} 10. Bxa6 {[%emt 0:04:45]} Nxa6 {[%emt 0:00:03]} 11. Ne2 {[%emt 0:00:06] C16: French: 3 Nc3 Bb4 4 e5: Lines without ...c5.} c5 {[%emt 0:19:57]} 12. Nf4 {[%emt 0:05:36]} (12. Bg5 $5 {[%cal Rg5d8]} Qd7 13. a4 $11) 12... Nxf4 {[%emt 0:00:42]} 13. Bxf4 {[%emt 0:00:06] The position is equal.} Kf8 {[%emt 0:01:01]} 14. Bg5 {[%emt 0:10:05]} Qd7 {[%emt 0:06:58]} 15. a4 {[%emt 0:02:16] [#]} cxd4 $146 {[%emt 0:08:00]} ({Predecessor:} 15... Kg8 16. O-O Rc8 17. Qd3 Nb8 18. a5 b5 19. f4 cxd4 20. cxd4 {½-½ (20) Sobirey,M-Nuechter,C GER email 2009}) 16. cxd4 {[%emt 0:01:58]} Rc8 {[%emt 0:00:05]} 17. O-O {[%emt 0:09:57]} Rc4 {[%emt 0:01:43]} 18. c3 {[%emt 0:20:00]} (18. a5 $5 {[%cal Ra5b6]} b5 19. c3 $11) 18... Nb8 {[%emt 0:27:10]} 19. f4 {[%emt 0:06:12]} Nc6 {[%emt 0:06:54]} ({Weaker is} 19... Rxa4 20. Rxa4 Qxa4 21. f5 $16) 20. Rf3 {[%emt 0:09:19] White is more active.} ({White should play} 20. f5 $14) 20... Ke8 {[%emt 0:08:21]} (20... Na5 $11) 21. Re1 {[%emt 0:11:50][%cal Of4f5] Threatens to win with f5!} g6 {[%emt 0:00:15]} (21... Rxa4 22. f5 Ra2 23. Be3 $18) 22. f5 {[%emt 0:03:33]} exf5 {[%emt 0:15:43][%mdl 8192] [#] Black cannot hold the game after this.} (22... gxf5 $11 23. Bf6 Rf8) 23. e6 $1 $18 {[%emt 0:00:35] White is clearly winning.} fxe6 {[%emt 0:00:01]} 24. Rfe3 {[%emt 0:00:08]} Kf7 {[%emt 0:00:50]} 25. Rxe6 {[%emt 0:00:31][%mdl 64] Deflection} Qxe6 {[%emt 0:00:01]} 26. Rxe6 {[%emt 0:00:04]} Kxe6 {[%emt 0:00:01] [#]} 27. Qc7 $1 {[%emt 0:00:08]} Re8 {[%emt 0:02:02]} 28. Qg7 {[%emt 0:00:18]} Rxc3 {[%emt 0:00:27]} 29. Qxg6+ {[%emt 0:00:15]} Kd7 {[%emt 0:00:00]} 30. Qxf5+ {[%emt 0:00:22]} Re6 {[%emt 0:01:12]} 31. Qxd5+ {[%emt 0:00:24]} Rd6 {[%emt 0:00:01]} 32. Qf5+ {[%emt 0:02:09]} Kc7 {[%emt 0:00:52]} 33. Bf4 {[%emt 0:00:31][%csl LRd6,LRh5]} Nxd4 {[%emt 0:00:26]} 34. Qe5 {[%emt 0:00:36] Weighted Error Value: White=0.20 (precise) /Black=0.28 (precise)} 1-0

[Event "8th Fischer Heraklion-GM 2022"]
[Site "Heraklion"]
[Date "2022.05.02"]
[Round "7.4"]
[White "Samaridis, Konstantinos"]
[Black "Mitsis, Georgios"]
[Result "0-1"]
[ECO "C96"]
[WhiteElo "2064"]
[BlackElo "2344"]
[Annotator "TA"]
[PlyCount "70"]
[EventDate "2022.04.18"]
[EventType "tourn"]
[EventCountry "GRE"]
[SourceTitle "playchess.com"]
[Source "ChessBase"]
[SourceQuality "1"]
[TimeControl "40/5400+30:1800+30"]

{[%evp 27,70,14,18,11,7,12,23,1,0,10,9,18,21,22,15,0,0,0,0,0,0,-15,-22,-46,-46,-50,-50,-47,-53,-224,-224,-224,-216,-222,-217,-210,-215,-354,-336,-337,-320,-460,-444,-29982,-29983]} 1. e4 {[%emt 0:13:10]} e5 {[%emt 0:00:20]} 2. Nf3 {[%emt 0:01:00]} Nc6 {[%emt 0:00:10]} 3. Bb5 {[%emt 0:00:03]} a6 {[%emt 0:00:13]} 4. Ba4 {[%emt 0:00:03]} Nf6 {[%emt 0:00:10]} 5. O-O {[%emt 0:00:05]} Be7 {[%emt 0:01:51]} 6. Re1 {[%emt 0:00:07]} b5 {[%emt 0:00:12]} 7. Bb3 {[%emt 0:00:03]} d6 {[%emt 0:00:11]} 8. c3 {[%emt 0:00:06]} O-O {[%emt 0:01:25]} 9. h3 {[%emt 0:00:02]} Na5 {[%emt 0:01:15]} 10. Bc2 {[%emt 0:00:06]} c5 {[%emt 0:00:10]} 11. d4 {[%emt 0:00:05]} Nd7 {[%emt 0:01:45][%cal Bf6d7,Bd7e5,Be5g6,Bg6e7][%mdl 32]} 12. Nbd2 {[%emt 0:00:54]} exd4 {[%emt 0:02:36]} 13. cxd4 {[%emt 0:00:11]} Nc6 {[%emt 0:00:06]} 14. d5 {[%emt 0:00:10]} Nce5 {[%emt 0:00:07]} 15. Nxe5 {[%emt 0:00:08] C96: Closed Ruy Lopez: Chigorin Defence: 11 d4, replies other than 11...Qc7.} Nxe5 {[%emt 0:00:07]} 16. a4 {[%emt 0:00:54]} Bb7 {[%emt 0:02:20]} 17. axb5 {[%emt 0:00:58] White has an edge.} axb5 {[%emt 0:00:08]} 18. Rxa8 {[%emt 0:00:03]} Qxa8 {[%emt 0:00:27]} 19. f4 {[%emt 0:00:09]} Ng6 {[%emt 0:00:08]} 20. Nf3 {[%emt 0:00:07] [#]} Bf6 $146 {[%emt 0:01:38]} ({Predecessor:} 20... Re8 21. f5 Ne5 22. Nxe5 dxe5 23. Qe2 c4 24. Rd1 Bc5+ 25. Be3 Qa7 26. Bxc5 Qxc5+ {½-½ (47) Spierenburg,P (2063)-Glaser,K (2257) ICCF email 2009}) 21. e5 {[%emt 0:01:10]} Be7 {[%emt 0:00:47]} 22. Be4 {[%emt 0:01:07]} f5 {[%emt 0:08:22]} 23. exf6 $1 {[%emt 0:00:26]} Bxf6 {[%emt 0:00:11]} 24. f5 {[%emt 0:01:00]} Ne7 {[%emt 0:08:57]} 25. Bg5 {[%emt 0:03:20]} Bxd5 {[%emt 0:14:17]} ({But not} 25... Nxd5 26. Bxf6 Rxf6 27. Ng5 $11) 26. Bxf6 {[%emt 0:00:28]} Rxf6 {[%emt 0:03:52]} 27. Ng5 {[%emt 0:00:22]} h6 {[%emt 0:08:02][%cal Bh7h6,Bh6g5,Bg5g4,Bg4h3][%mdl 32]} 28. Qh5 {[%emt 0:02:26] This costs White the game.} hxg5 $19 {[%emt 0:05:09]} 29. Bxd5+ {[%emt 0:00:09]} Qxd5 {[%emt 0:00:13]} 30. Rxe7 {[%emt 0:01:46]} Qxf5 {[%emt 0:02:17] KQR-KQR} 31. Qe8+ {[%emt 0:00:31] [#]} Kh7 $1 {[%emt 0:04:12] aiming for ...g4.} ({Weaker is} 31... Rf8 32. Qxb5 Qf2+ 33. Kh1 $17) 32. Qxb5 {[%emt 0:02:51]} (32. Qh5+ {was the only defense.} Rh6 33. Qd1) 32... g4 {[%emt 0:03:07] ( -> ...Qf2+)} 33. Qe2 {[%emt 0:21:11] Inhibits Qf2+.} gxh3 {[%emt 0:03:03] ...Rg6 is the strong threat.} 34. g3 {[%emt 0:10:29]} (34. Qe4 {is a better defense.}) 34... Qf3 {[%emt 0:05:09]} 35. Qc2+ {[%emt 0:01:13] [#]} (35. Qxf3 $19 Rxf3 36. Kh2) 35... Rg6 {[%emt 0:00:46] Weighted Error Value: White=0.59/Black=0.01 (flawless)} 0-1

[Event "8th Fischer Heraklion-GM 2022"]
[Site "Heraklion"]
[Date "2022.05.02"]
[Round "7.5"]
[White "Jahncke, Giso"]
[Black "Milikow, Yoav"]
[Result "0-1"]
[ECO "E04"]
[WhiteElo "2326"]
[BlackElo "2383"]
[Annotator "TA"]
[PlyCount "98"]
[EventDate "2022.04.18"]
[EventType "tourn"]
[EventCountry "GRE"]
[SourceTitle "playchess.com"]
[Source "ChessBase"]
[SourceQuality "1"]
[TimeControl "40/5400+30:1800+30"]

{[%evp 12,98,28,0,0,0,0,0,0,0,0,0,0,0,0,0,0,-23,95,108,304,155,212,11,12,15,6,0,0,0,0,0,0,0,0,0,0,-24,-23,-54,-35,-53,-35,-39,0,-8,-9,-677,-614,-2002,-1886,-5650,-9941,-1762,-732,-755,-693,-677,-589,-1185,-1134,-1363,-1258,-6122,-4253,-29981,-29982,-29982,-29983,-29988,-29979,-29979,-29980,-29980,-29981,-29982,-29983,-29982,-29979,-29984,-29982,-29987,-29985,-29987,-29985,-29986,-29987,-29987,-29986]} 1. d4 {[%emt 0:00:04]} Nf6 {[%emt 0:01:08]} 2. c4 {[%emt 0:00:08]} e6 {[%emt 0:00:23]} 3. g3 {[%emt 0:00:04]} d5 {[%emt 0:00:32]} 4. Bg2 {[%emt 0:00:06]} Bb4+ {[%emt 0:00:14]} 5. Nd2 {[%emt 0:00:06]} O-O {[%emt 0:00:54]} 6. Ngf3 {[%emt 0:00:06]} dxc4 {[%emt 0:01:23]} 7. Qc2 {[%emt 0:00:06]} (7. a3 $142 Bxd2+ 8. Bxd2) 7... a5 $11 {[%emt 0:00:28] E04: Open Catalan: 5 Nf3.} 8. a3 {[%emt 0:00:06] 8.a3 scores better than 8.0-0.} Bxd2+ {[%emt 0:00:24]} 9. Bxd2 {[%emt 0:00:07]} b5 {[%emt 0:00:30] The position is equal.} 10. a4 {[%emt 0:00:11]} c6 {[%emt 0:00:53]} 11. h4 {[%emt 0:00:05]} Bb7 {[%emt 0:00:19]} 12. h5 {[%emt 0:00:05]} h6 {[%emt 0:00:11] [#]} 13. Rh4 $146 {[%emt 0:00:03]} ({Predecessor:} 13. g4 Nxg4 14. Rg1 f5 15. Bh3 c5 16. Bxg4 Be4 17. Qc3 fxg4 18. Rxg4 Bxf3 19. exf3 cxd4 20. Rxd4 {1-0 (41) Prohaszka,P (2610)-Gavrilescu,D (2451) Batumi 2019}) 13... Nbd7 {[%emt 0:05:57]} 14. Ne5 {[%emt 0:00:20] And now axb5 would win.} Nxe5 {[%emt 0:02:04]} (14... Qc7 $11) 15. dxe5 $16 {[%emt 0:00:17]} Nd7 {[%emt 0:03:07] [#]} (15... Nd5 16. Rg4 Kh8 17. Bxh6 $1 $14) (15... Nh7 $16 {is a better defense.}) 16. axb5 {[%emt 0:10:06]} (16. Bxh6 $1 $18 {Threatens to win with Rg4.} Nxe5 17. Bf4) 16... Qb6 {[%emt 0:02:58] [#]} (16... Nxe5 $16 17. Rd1 Qc7) 17. bxc6 $2 {[%emt 0:11:54]} ({And not} 17. Rxc4 cxb5 18. Be3 Qd8 19. Bxb7 bxc4 $11) (17. Bxh6 $1 $18 {[%mdl 512]} Nxe5 18. Be3 Qxb5 19. h6) 17... Bxc6 $11 {[%emt 0:00:08]} 18. Bxc6 {[%emt 0:00:15]} Qxc6 {[%emt 0:00:02]} 19. Qe4 {[%emt 0:04:15] Against Qg2} Qb5 {[%emt 0:03:44][%csl LRb2,LRe5]} 20. Bc3 {[%emt 0:02:14]} Nb6 {[%emt 0:01:48]} 21. Kf1 {[%emt 0:08:10]} Rfd8 {[%emt 0:04:15]} 22. Kg2 {[%emt 0:02:51]} a4 {[%emt 0:01:46]} 23. Rg4 {[%emt 0:06:11]} Kh8 {[%emt 0:01:19]} 24. Qf3 {[%emt 0:02:53]} Rd7 {[%emt 0:01:49]} 25. Bd4 {[%emt 0:12:03] Hoping for Bxb6.} Nd5 {[%emt 0:02:31]} 26. Ra3 {[%emt 0:04:39]} Rad8 {[%emt 0:03:11]} 27. Qe4 {[%emt 0:06:32]} Nf4+ {[%emt 0:15:06]} 28. Qxf4 {[%emt 0:13:47]} Rxd4 {[%emt 0:00:11]} 29. e4 $2 {[%emt 0:00:33][%mdl 8192]} (29. Qf3 $11) 29... c3 {[%emt 0:02:31]} 30. Qxf7 {[%emt 0:09:11][%csl Gg4][%cal Rf7g7]} R4d7 {[%emt 0:00:21] Active counter play!} 31. Qxe6 {[%emt 0:00:06]} cxb2 {[%emt 0:04:08]} 32. Rxg7 {[%emt 0:03:00] [#]} Qf1+ $3 {[%emt 0:06:00][%mdl 512]} 33. Kxf1 $19 {[%emt 0:00:55]} b1=Q+ {[%emt 0:00:08]} 34. Kg2 {[%emt 0:00:06][%cal Re6h6]} Qxe4+ {[%emt 0:00:08]} ({Weaker is} 34... Rxg7 35. Qxh6+ Kg8 36. Qe6+ Kh7 37. Qf5+ Kg8 38. Qe6+ Kh8 39. Qh6+ Kg8 40. Qe6+ $11) 35. Rf3 {[%emt 0:00:04]} Rxg7 {[%emt 0:02:48]} ({Inferior is} 35... Kxg7 36. Qf6+ Kg8 37. e6 $11) 36. Qxh6+ {[%emt 0:00:13]} Kg8 {[%emt 0:00:49]} 37. Qe6+ {[%emt 0:00:14]} Kh7 {[%emt 0:00:20] ( -> ...Rf8)} 38. h6 {[%emt 0:02:22] [#]} Rf8 $1 {[%emt 0:01:17] Black mates.} 39. hxg7 {[%emt 0:00:27]} Qxf3+ {[%emt 0:00:04]} 40. Kh3 {[%emt 0:00:00]} Qh5+ {[%emt 0:00:00]} 41. Kg2 {[%emt 0:00:17]} Kxg7 {[%emt 0:01:31]} 42. Qd7+ {[%emt 0:00:53]} Rf7 {[%emt 0:02:43]} 43. Qxa4 {[%emt 0:00:12]} Qf3+ {[%emt 0:00:59]} 44. Kh3 {[%emt 0:00:07]} Qxf2 {[%emt 0:00:31]} 45. e6 {[%emt 0:01:34]} Qf5+ {[%emt 0:00:47]} 46. Kh2 {[%emt 0:00:19]} Qxe6 {[%emt 0:00:14]} 47. Qd4+ {[%emt 0:00:22]} Kh7 {[%emt 0:00:10]} 48. Kg2 {[%emt 0:00:30]} Qe2+ {[%emt 0:00:33]} 49. Kh3 {[%emt 0:00:06]} Qf1+ {[%emt 0:00:08] Quite a comeback for Black.  Weighted Error Value: White=1.21/Black=0.34} 0-1

[Event "8th Fischer Heraklion-GM 2022"]
[Site "Heraklion"]
[Date "2022.05.03"]
[Round "8.1"]
[White "Korneev, Oleg"]
[Black "Milikow, Yoav"]
[Result "0-1"]
[ECO "D02"]
[WhiteElo "2521"]
[BlackElo "2383"]
[Annotator "TA"]
[PlyCount "81"]
[EventDate "2022.04.18"]
[EventType "tourn"]
[EventCountry "GRE"]
[SourceTitle "playchess.com"]
[Source "ChessBase"]
[SourceQuality "1"]
[TimeControl "40/5400+30:1800+30"]

{[%evp 11,81,0,23,19,24,6,17,10,18,19,26,8,75,85,82,84,110,78,136,83,83,86,106,81,171,158,249,241,237,160,162,127,174,165,157,141,139,141,153,149,141,93,243,102,108,102,97,95,108,96,100,60,58,0,31,33,134,129,114,11,34,15,10,0,0,0,0,0,0,0,0,-29988]} 1. d4 {[%emt 0:00:04]} Nf6 {[%emt 0:00:08]} 2. Nf3 {[%emt 0:00:04]} d5 {[%emt 0:00:27]} 3. Bf4 {[%emt 0:02:25]} e6 {[%emt 0:00:43]} 4. e3 {[%emt 0:00:14]} c5 {[%emt 0:00:15]} 5. c3 {[%emt 0:00:10]} Nc6 {[%emt 0:00:28]} 6. Nbd2 {[%emt 0:00:23]} cxd4 $1 {[%emt 0:00:20][%mdl 4] outshines the older 6...Bd6.} 7. exd4 {[%emt 0:00:38] D02: 1 d4 d5 2 Nf3 sidelines, including 2...Nf6 3 g3 and 2...Nf6 3 Bf4.} (7. Nxd4 Bd6 $11) 7... Nh5 {[%emt 0:00:28]} 8. Bg5 {[%emt 0:06:59]} f6 {[%emt 0:01:43]} 9. Be3 {[%emt 0:00:16]} Bd6 {[%emt 0:01:30]} 10. g3 {[%emt 0:02:16]} g6 {[%emt 0:04:41]} 11. Bg2 {[%emt 0:03:47] [#]} f5 $146 {[%emt 0:03:37]} (11... Ng7 $11 {remains equal.}) ({Predecessor:} 11... Ng7 12. O-O Nf5 13. Re1 Kf7 14. c4 Nce7 15. Qb3 Qb6 16. Qd3 Qd8 17. Nb3 b6 18. cxd5 Nxd5 {1-0 (67) Sumets,A (2577)-Mesaros,F (2432) Aschach 2018}) 12. Bh6 $16 {[%emt 0:01:45]} Nf6 {[%emt 0:09:34]} 13. O-O {[%emt 0:09:51]} Qc7 {[%emt 0:06:12]} 14. Nb3 {[%emt 0:01:50]} Ne4 {[%emt 0:11:28]} ({Black should try} 14... Ng4 15. Qd2 Nxh6 16. Qxh6 Bd7) 15. Ng5 {[%emt 0:06:48]} ({Better is} 15. c4) 15... Nxg5 {[%emt 0:05:02]} 16. Bxg5 {[%emt 0:00:12]} h6 {[%emt 0:02:14]} 17. Bd2 {[%emt 0:01:56]} b6 {[%emt 0:02:51]} (17... g5 $16) 18. Re1 {[%emt 0:00:20]} Kf7 {[%emt 0:00:47]} (18... Ne7 $16 19. Nc1 Kf7) 19. c4 $1 $18 {[%emt 0:12:22]} dxc4 {[%emt 0:00:29] [#]} 20. d5 $1 {[%emt 0:00:31]} cxb3 {[%emt 0:04:29]} (20... e5 21. dxc6) 21. dxc6 {[%emt 0:01:48]} e5 {[%emt 0:02:38]} (21... bxa2 $16 {was called for.} 22. Qb3 (22. Rxa2 e5 $16) 22... g5) 22. Bd5+ {[%emt 0:03:48]} Be6 {[%emt 0:04:28]} 23. Bxe6+ {[%emt 0:01:19]} Kxe6 {[%emt 0:00:07]} 24. Qxb3+ {[%emt 0:00:22]} Kf6 {[%emt 0:00:06]} 25. Rac1 {[%emt 0:18:13][%cal Of2f4]} g5 {[%emt 0:02:19] Against f4} 26. Bb4 {[%emt 0:03:28]} (26. f4 $142 {Black must now prevent fxe5+.} Rhe8 27. fxe5+ Bxe5 28. Bc3 Bxc3 29. Qxc3+ Kg6 30. b4) 26... Rhd8 {[%emt 0:05:33]} (26... Bxb4 $16 27. Qxb4 Rhd8) 27. Red1 {[%emt 0:06:10]} (27. f4 $1 $18 {is the precise move to win.} e4 28. fxg5+ hxg5 29. Bxd6 Rxd6 30. Qc3+ Kg6 31. g4 fxg4 32. Qe5 (32. Rxe4 Rad8 $16)) 27... Rac8 {[%emt 0:05:37]} 28. a4 {[%emt 0:00:54]} Bxb4 {[%emt 0:03:20]} 29. Qxb4 {[%emt 0:01:18]} a5 {[%emt 0:00:34] [#]} (29... Rxd1+ $2 30. Rxd1 Rd8 31. Rxd8 Qxd8 32. Qc3 $18) 30. Qb3 {[%emt 0:01:04]} Rd4 {[%emt 0:01:36]} 31. Qf3 {[%emt 0:07:26]} Qd6 {[%emt 0:01:55]} 32. Qh5 {[%emt 0:04:16]} (32. g4 $14 Kg7 33. Rxd4 exd4 34. gxf5) 32... Kg7 {[%emt 0:00:26]} 33. h4 {[%emt 0:00:48]} Qf6 {[%emt 0:03:30] [#]} (33... Rxc6 $14 34. hxg5 Qg6 35. gxh6+ Kh7) 34. hxg5 $1 $16 {[%emt 0:00:57]} hxg5 {[%emt 0:00:28]} 35. Rxd4 {[%emt 0:00:31]} ({Only move:} 35. c7 $16) 35... exd4 {[%emt 0:00:02][%mdl 4096] Endgame KQR-KQR} 36. Qf3 {[%emt 0:00:17]} (36. c7 {is more complex.} d3 37. Qf3 d2 38. Rc2) 36... Qe5 {[%emt 0:01:22] Against Qd5. The position is equal.} 37. Qb3 {[%emt 0:02:01]} Rh8 {[%emt 0:03:23] Hoping for ...Qe4.} 38. Qf3 {[%emt 0:01:26]} ({Wrong is} 38. Qxb6 $2 Qd5 39. Qc7+ Kg6 $19) 38... g4 {[%emt 0:01:15]} 39. Qf4 {[%emt 0:00:34]} Qd5 {[%emt 0:00:29][%csl Gh8][%cal Rd5h1]} 40. f3 $1 {[%emt 0:00:59] c7 is the strong threat.} gxf3 {[%emt 0:00:22][%cal Of3f2] ( -> ...f2+!). Dancing on a razor blade.} 41. Qc7+ $2 {[%emt 0:08:09][%mdl 8192] Black used his chance.  Weighted Error Value: White=0.20 (precise) /Black=0.23 (precise)} (41. Kf2 $11 Qe4 42. Qxe4 fxe4 43. c7) 0-1

[Event "8th Fischer Heraklion-GM 2022"]
[Site "Heraklion"]
[Date "2022.05.03"]
[Round "8.2"]
[White "Mitsis, Georgios"]
[Black "Jahncke, Giso"]
[Result "1/2-1/2"]
[ECO "E92"]
[WhiteElo "2344"]
[BlackElo "2326"]
[Annotator "TA"]
[PlyCount "100"]
[EventDate "2022.04.18"]
[EventType "tourn"]
[EventCountry "GRE"]
[SourceTitle "playchess.com"]
[Source "ChessBase"]
[SourceQuality "1"]
[TimeControl "40/5400+30:1800+30"]

{[%evp 19,99,22,31,0,54,69,62,44,42,49,43,22,14,0,0,0,0,0,0,0,0,-12,0,0,0,0,0,0,0,0,0,0,0,0,0,-13,0,0,0,0,0,0,0,-162,-106,-104,-111,-58,-28,-71,-63,-63,-56,-63,0,-1508,-1425,-1177,0,0,0,0,0,0,0,0,0,0,0,0,0,0,0,0,0,0,0,0,120,0,0,0]} 1. d4 {[%emt 0:01:52]} Nf6 {[%emt 0:00:05]} 2. c4 {[%emt 0:00:13]} g6 {[%emt 0:00:05]} 3. Nc3 {[%emt 0:00:08]} Bg7 {[%emt 0:00:03]} 4. e4 {[%emt 0:00:18]} d6 {[%emt 0:00:05]} 5. Nf3 {[%emt 0:00:59]} O-O {[%emt 0:00:08]} 6. Be2 {[%emt 0:00:15]} e5 {[%emt 0:00:07]} 7. d5 {[%emt 0:04:19]} a5 {[%emt 0:00:21]} 8. Bg5 {[%emt 0:05:25]} h6 {[%emt 0:00:18]} 9. Bh4 {[%emt 0:01:15]} Na6 {[%emt 0:00:24]} 10. Nd2 {[%emt 0:00:12]} Bd7 {[%emt 0:01:22]} 11. b3 {[%emt 0:11:30] [#] E92: King's Indian: Classical: 6 Be2 e5: 7 dxe5, 7 Be3 and Petrosian System without 7...Nbd7.} Nxe4 $146 {[%emt 0:00:55]} ({Predecessor:} 11... Qe8 12. a3 Nh7 13. O-O f5 14. f3 h5 15. Rb1 Bh6 16. Bf2 Kh8 17. b4 axb4 18. axb4 g5 19. c5 f4 20. c6 Bc8 21. b5 Nc5 22. Bxc5 dxc5 {1-0 (29) Yavorovsky,V (2333)-Budrewicz,K (2289) Chess.com INT 2021}) 12. Bxd8 $14 {[%emt 0:06:08]} Nxc3 {[%emt 0:00:05]} 13. Qc1 {[%emt 0:02:33] White is slightly better.} (13. Qc2 $5 {[%cal Rc2c3]} Nxe2 14. Kxe2 Raxd8 15. f3 $16) 13... Nxe2 {[%emt 0:00:06]} 14. Kxe2 {[%emt 0:00:43]} Raxd8 {[%emt 0:00:20]} 15. Re1 {[%emt 0:21:33]} Nc5 {[%emt 0:07:55][%cal Ba6c5,Bc5d3,Bd3e1][%mdl 32] Inhibits Ne4.} 16. Kf1 {[%emt 0:02:41]} Nd3 {[%emt 0:04:25][%csl LRc1,LRe1]} 17. Qc2 {[%emt 0:02:04]} Nxe1 {[%emt 0:04:53]} 18. Rxe1 {[%emt 0:00:05]} b6 {[%emt 0:01:19]} 19. Re2 {[%emt 0:02:14]} f5 {[%emt 0:05:08]} 20. Nb1 {[%emt 0:00:05]} g5 {[%emt 0:05:26]} 21. Nc3 {[%emt 0:00:24]} Be8 {[%emt 0:00:40]} 22. Nb5 {[%emt 0:00:22]} Rd7 {[%emt 0:00:42]} 23. a3 {[%emt 0:00:45]} Bh5 {[%emt 0:07:54]} 24. Re1 {[%emt 0:01:57][%cal Be2e1,Be1a1,Ba1a3][%mdl 32]} Kh7 {[%emt 0:01:38]} 25. b4 {[%emt 0:06:18]} axb4 {[%emt 0:00:32]} 26. axb4 {[%emt 0:00:09]} Bg6 {[%emt 0:00:18]} 27. Ra1 {[%emt 0:05:24]} f4 {[%emt 0:03:15][%cal Bf5f4,Bf4f3][%mdl 32]} 28. Qd1 {[%emt 0:00:31]} f3 {[%emt 0:01:08]} 29. g3 {[%emt 0:02:30] Prevents Rf4.} Re7 {[%emt 0:01:22]} 30. Ra3 {[%emt 0:00:53]} g4 {[%emt 0:00:23]} 31. Na7 $2 {[%emt 0:09:00]} (31. Qe1 $11 {and White is okay.}) 31... h5 {[%emt 0:09:23]} (31... e4 $19 32. Nc6 e3 33. fxe3 Re4) 32. Nc6 $17 {[%emt 0:00:18]} Ree8 {[%emt 0:00:12]} 33. b5 {[%emt 0:02:37]} Bh6 {[%emt 0:05:31] And now ...e4 would win.} 34. Nb4 {[%emt 0:01:30]} e4 {[%emt 0:08:46]} 35. Nc2 {[%emt 0:00:17] Inhibits e3.} e3 $1 {[%emt 0:00:15]} 36. Nxe3 {[%emt 0:00:37]} Bxe3 {[%emt 0:01:40]} ({Black should play} 36... Re7 $15) 37. Rxe3 $4 {[%emt 0:01:54][%mdl 8192]} (37. fxe3 $11 f2 38. Ra2) 37... Rxe3 $19 {[%emt 0:00:27]} 38. fxe3 $15 {[%emt 0:00:06][%mdl 4096] Endgame [#] KQ-KRB} Ra8 $2 {[%emt 0:05:07]} (38... f2 $1 $19 39. Qe2 Be4) 39. Qd4 {[%emt 0:04:30] Inhibits Be4.} Ra2 {[%emt 0:00:37] ...h4 is the strong threat.} 40. e4 {[%emt 0:00:00]} Re2 {[%emt 0:00:00]} 41. Qf6 {[%emt 0:08:13] aiming for Qe7+.} Rxe4 {[%emt 0:02:17]} 42. h3 {[%emt 0:02:42]} gxh3 {[%emt 0:16:05]} 43. Qxf3 {[%emt 0:00:39]} Rxc4 {[%emt 0:07:04] ( -> ...h2)} 44. Kg1 {[%emt 0:04:23]} Rc2 {[%emt 0:06:10]} 45. Qe3 {[%emt 0:03:04]} h2+ {[%emt 0:00:17]} 46. Kh1 {[%emt 0:00:07]} Kg8 {[%emt 0:01:08]} 47. Qe6+ {[%emt 0:00:20]} Bf7 {[%emt 0:00:10]} 48. Qf5 {[%emt 0:00:15]} Re2 {[%emt 0:00:48] [#]} (48... Rc5 $11 {remains equal.}) 49. Qc8+ {[%emt 0:04:45]} (49. g4 $1 $16 {[%cal Rg4h5]}) 49... Kg7 $11 {[%emt 0:03:03][%cal Rf7d5]} ({Don't play} 49... Re8 50. Qxc7 Re2 51. Qc4 $16 (51. Qxd6 Rd2 $11)) 50. Qg4+ {[%emt 0:02:04]} hxg4 {[%emt 0:01:34] Weighted Error Value: White=0.33/Black=0.22 (precise)} 1/2-1/2